fUST/lending_fUST_20250920
["ID","MTS","AMOUNT","RATE_DAILY","PERIOD"]
[386531365,1758358241248,-480.0,0.00021782,2]
[386531366,1758358241258,-785.14,0.00021782,2]
[386531367,1758358241267,-480.0,0.00021782,2]
[386531368,1758358241277,-1873.84,0.00021782,2]
[386531369,1758358241287,-1001.2,0.00021782,2]
[386531370,1758358241296,-480.0,0.00021783,2]
[386531371,1758358241305,-480.0,0.00021783,2]
[386531372,1758358241315,-480.0,0.00021783,2]
[386531373,1758358241324,-480.0,0.00021783,2]
[386531374,1758358241334,-720.47,0.00021783,2]
[386531375,1758358241343,-480.0,0.00021783,2]
[386531376,1758358241352,-480.0,0.00021783,2]
[386531377,1758358241362,-273.76662306,0.00021783,2]
[386531378,1758358241371,-480.0,0.00021783,2]
[386531379,1758358241380,-480.0,0.00021783,2]
[386531380,1758358241389,-480.0,0.00021783,2]
[386531381,1758358241399,-480.0,0.00021785,2]
[386531382,1758358241408,-1402.79,0.00021785,2]
[386531383,1758358241418,-681.01,0.00021785,2]
[386531384,1758358241427,-480.0,0.00021785,2]
[386531385,1758358241437,-480.0,0.00021786,2]
[386531386,1758358241446,-3805.84,0.00021787,2]
[386531387,1758358241455,-648.37,0.00021787,2]
[386531388,1758358241465,-1070.95,0.00021787,2]
[386531389,1758358241474,-480.0,0.0002179,2]
[386531390,1758358241484,-9539.56,0.0002179,2]
[386531391,1758358241494,-480.0,0.0002179,2]
[386531392,1758358241503,-480.0,0.00021791,2]
[386531393,1758358241513,-676.28,0.00021791,2]
[386531394,1758358241522,-504.4521168,0.00021821,2]
[386531395,1758358241532,-1013.16759771,0.00021821,2]
[386531396,1758358241542,-500.0,0.00021821,2]
[386531397,1758358241551,-480.0,0.00021953,2]
[386531398,1758358241560,-480.0,0.00021953,2]
[386531399,1758358241570,-1406.61,0.00021953,2]
[386531400,1758358241580,-480.0,0.00021953,2]
[386531401,1758358241589,-337.0626027,0.00021953,2]
[386531402,1758358241598,-1032.51,0.00021953,2]
[386531403,1758358241608,-1020.76,0.00021953,2]
[386531404,1758358241618,-480.0,0.00021953,2]
[386531405,1758358241627,-480.0,0.00021953,2]
[386531406,1758358241637,-480.0,0.00021953,2]
[386531407,1758358241646,-480.0,0.00021953,2]
[386531408,1758358241655,-480.0,0.00021953,2]
[386531409,1758358241665,-1853.19,0.00021953,2]
[386531410,1758358241674,-480.0,0.00021953,2]
[386531411,1758358241683,-480.0,0.00021953,2]
[386531412,1758358241692,-916.15,0.00021953,2]
[386531413,1758358241702,-480.0,0.00021953,2]
[386531414,1758358241711,-480.0,0.00021953,2]
[386531415,1758358241721,-480.0,0.00021953,2]
[386531416,1758358241730,-480.0,0.00021953,2]
[386531417,1758358241739,-500.0,0.00021957,5]
[386531418,1758358241748,-500.0,0.00021957,5]
[386531419,1758358241758,-500.0,0.00021973,2]
[386531420,1758358241767,-500.0,0.00021973,2]
[386531421,1758358241777,-38003.56120097,0.0002199,2]
[386531422,1758358241786,-5306.38,0.00022,7]
[386531423,1758358241795,-480.0,0.00022055,2]
[386531424,1758358241805,-480.0,0.00022055,2]
[386531425,1758358241814,-480.0,0.00022055,2]
[386531426,1758358241823,-480.0,0.00022055,2]
[386531427,1758358241833,-480.0,0.00022055,2]
[386531428,1758358241843,-480.0,0.00022055,2]
[386531429,1758358241852,-480.0,0.00022055,2]
[386531430,1758358241862,-480.0,0.00022055,2]
[386531431,1758358241871,-480.0,0.00022055,2]
[386531432,1758358241881,-480.0,0.00022055,2]
[386531433,1758358241891,-480.0,0.00022055,2]
[386531434,1758358241899,-480.0,0.00022055,2]
[386531435,1758358241909,-480.0,0.00022055,2]
[386531436,1758358241918,-480.0,0.00022055,2]
[386531437,1758358241927,-480.0,0.00022055,2]
[386531438,1758358241936,-480.0,0.00022055,2]
[386531439,1758358241945,-740.46,0.00022056,2]
[386531440,1758358241954,-480.0,0.00022056,2]
[386531441,1758358241963,-480.0,0.00022056,2]
[386531442,1758358241972,-480.0,0.00022056,2]
[386531443,1758358241981,-480.0,0.00022056,2]
[386531444,1758358241991,-480.0,0.00022056,2]
[386531445,1758358242000,-480.0,0.00022056,2]
[386531446,1758358242009,-785.14,0.00022056,2]
[386531447,1758358242019,-480.0,0.00022056,2]
[386531448,1758358242105,-1873.84,0.00022056,2]
[386531449,1758358242115,-1001.2,0.00022056,2]
[386531450,1758358242124,-480.0,0.00022057,2]
[386531451,1758358242134,-480.0,0.00022057,2]
[386531452,1758358242143,-480.0,0.00022057,2]
[386531453,1758358242152,-480.0,0.00022057,2]
[386531454,1758358242161,-720.47,0.00022057,2]
[386531455,1758358242170,-480.0,0.00022057,2]
[386531456,1758358242179,-480.0,0.00022057,2]
[386531457,1758358242188,-236.997941,0.00022057,2]
[386531458,1758358242198,-480.0,0.00022057,2]
[386531459,1758358242207,-480.0,0.00022059,2]
[386531460,1758358242216,-1402.79,0.00022059,2]
[386531461,1758358242226,-681.01,0.00022059,2]
[386531462,1758358242236,-480.0,0.00022059,2]
[386531463,1758358242248,-480.0,0.0002206,2]
[386531464,1758358242257,-3805.84,0.00022061,2]
[386531465,1758358242267,-648.37,0.00022061,2]
[386531466,1758358242276,-1070.95,0.00022061,2]
[386531467,1758358242285,-480.0,0.00022064,2]
[386531468,1758358242294,-9539.56,0.00022064,2]
[386531469,1758358242303,-480.0,0.00022064,2]
[386531470,1758358242313,-523.56,0.00022065,2]
[386531471,1758358242322,-676.28,0.00022065,2]
[386531472,1758358242331,-160.0,0.000221,2]
[386531473,1758358242341,-302.15500742,0.00022168,2]
[386531474,1758358242351,-496.05924118,0.00022216,2]
[386531475,1758358242361,-490.0010079,0.00022227,2]
[386531476,1758358242370,-1406.61,0.00022227,2]
[386531477,1758358242379,-480.0,0.00022227,2]
[386531478,1758358242389,-1032.51,0.00022227,2]
[386531479,1758358242398,-1020.76,0.00022227,2]
[386531480,1758358242407,-480.0,0.00022227,2]
[386531481,1758358242417,-480.0,0.00022227,2]
[386531482,1758358242426,-480.0,0.00022227,2]
[386531483,1758358242435,-480.0,0.00022227,2]
[386531484,1758358242444,-480.0,0.00022227,2]
[386531485,1758358242454,-1853.19,0.00022227,2]
[386531486,1758358242463,-480.0,0.00022227,2]
[386531487,1758358242472,-480.0,0.00022227,2]
[386531488,1758358242482,-916.15,0.00022227,2]
[386531489,1758358242491,-480.0,0.00022227,2]
[386531490,1758358242500,-480.0,0.00022227,2]
[386531491,1758358242510,-480.0,0.00022227,2]
[386531492,1758358242519,-500.0,0.00022231,5]
[386531493,1758358242528,-500.0,0.00022231,5]
[386531494,1758358242538,-232.89377225,0.00022234,2]
[386531495,1758358242547,-480.0,0.00022329,2]
[386531496,1758358242557,-480.0,0.00022329,2]
[386531497,1758358242566,-480.0,0.00022329,2]
[386531498,1758358242575,-480.0,0.00022329,2]
[386531499,1758358242585,-480.0,0.00022329,2]
[386531500,1758358242594,-480.0,0.00022329,2]
[386531501,1758358242603,-480.0,0.00022329,2]
[386531502,1758358242613,-480.0,0.00022329,2]
[386531503,1758358242622,-480.0,0.00022329,2]
[386531504,1758358242631,-480.0,0.00022329,2]
[386531505,1758358242641,-480.0,0.00022329,2]
[386531506,1758358242650,-480.0,0.00022329,2]
[386531507,1758358242659,-480.0,0.00022329,2]
[386531508,1758358242668,-480.0,0.00022329,2]
[386531509,1758358242677,-480.0,0.00022329,2]
[386531510,1758358242687,-480.0,0.00022329,2]
[386531511,1758358242696,-740.46,0.0002233,2]
[386531512,1758358242705,-480.0,0.0002233,2]
[386531513,1758358242715,-480.0,0.0002233,2]
[386531514,1758358242724,-480.0,0.0002233,2]
[386531515,1758358242733,-480.0,0.0002233,2]
[386531516,1758358242742,-480.0,0.0002233,2]
[386531517,1758358242752,-480.0,0.0002233,2]
[386531518,1758358242761,-785.14,0.0002233,2]
[386531519,1758358242771,-480.0,0.0002233,2]
[386531520,1758358242780,-1873.84,0.0002233,2]
[386531521,1758358242789,-1001.2,0.0002233,2]
[386531522,1758358242799,-480.0,0.00022331,2]
[386531523,1758358242808,-480.0,0.00022331,2]
[386531525,1758358242817,-480.0,0.00022331,2]
[386531527,1758358242826,-720.47,0.00022331,2]
[386531529,1758358242835,-480.0,0.00022331,2]
[386531530,1758358242845,-480.0,0.00022331,2]
[386531531,1758358242854,-480.0,0.00022331,2]
[386531532,1758358242863,-205.937041,0.00022331,7]
[386531533,1758358242872,-151.0,0.00022331,7]
[386531534,1758358242884,-205.937041,0.00022331,7]
[386531535,1758358242893,-205.937041,0.00022331,7]
[386531536,1758358242903,-480.0,0.00022333,2]
[386531537,1758358242913,-151.0,0.00022333,7]
[386531538,1758358242923,-151.0,0.00022333,7]
[386531539,1758358242932,-151.0,0.00022333,7]
[386531540,1758358242946,-151.0,0.00022333,7]
[386531541,1758358242961,-1402.79,0.00022333,2]
[386531542,1758358242975,-151.0,0.00022333,7]
[386531543,1758358242987,-151.0,0.00022333,7]
[386531544,1758358243000,-151.0,0.00022333,7]
[386531545,1758358243013,-151.0,0.00022333,7]
[386531547,1758358243027,-681.01,0.00022333,2]
[386531548,1758358243040,-180.74939,0.00022333,7]
[386531549,1758358243051,-180.74939,0.00022333,7]
[386531550,1758358243065,-151.0,0.00022333,7]
[386531551,1758358243078,-180.74939,0.00022333,7]
[386531552,1758358243090,-151.0,0.00022333,7]
[386531553,1758358243102,-151.0,0.00022333,7]
[386531554,1758358243114,-180.74939,0.00022333,7]
[386531555,1758358243126,-151.0,0.00022333,7]
[386531556,1758358243140,-151.0,0.00022333,7]
[386531557,1758358243152,-613.454418,0.00022333,7]
[386531558,1758358243165,-613.454418,0.00022333,7]
[386531559,1758358243175,-613.454418,0.00022333,7]
[386531560,1758358243187,-613.454418,0.00022333,7]
[386531561,1758358243198,-257.413355,0.00022333,7]
[386531562,1758358243212,-257.413355,0.00022333,7]
[386531563,1758358243225,-257.413355,0.00022333,7]
[386531564,1758358243239,-579.404273,0.00022333,7]
[386531565,1758358243254,-257.413355,0.00022333,7]
[386531566,1758358243267,-579.404273,0.00022333,7]
[386531567,1758358243281,-151.0,0.00022333,2]
[386531568,1758358243292,-579.404273,0.00022333,7]
[386531569,1758358243303,-579.404273,0.00022333,7]
[386531570,1758358243314,-151.0,0.00022333,7]
[386531571,1758358243327,-151.0,0.00022333,7]
[386531572,1758358243341,-151.0,0.00022333,7]
[386531573,1758358243353,-151.0,0.00022333,7]
[386531574,1758358243364,-151.0,0.00022333,7]
[386531575,1758358243375,-151.0,0.00022333,7]
[386531576,1758358243387,-151.0,0.00022333,7]
[386531577,1758358243400,-151.0,0.00022333,7]
[386531578,1758358243410,-151.0,0.00022333,7]
[386531579,1758358243421,-250.461814,0.00022333,7]
[386531580,1758358243433,-151.0,0.00022333,7]
[386531581,1758358243444,-151.64122,0.00022333,7]
[386531583,1758358243456,-151.0,0.00022333,7]
[386531584,1758358243468,-151.0,0.00022333,7]
[386531585,1758358243479,-151.0,0.00022333,7]
[386531586,1758358243491,-151.0,0.00022333,7]
[386531587,1758358243503,-151.0,0.00022333,7]
[386531588,1758358243515,-480.0,0.00022333,2]
[386531589,1758358243526,-480.0,0.00022334,2]
[386531590,1758358243538,-3805.84,0.00022335,2]
[386531591,1758358243549,-648.37,0.00022335,2]
[386531592,1758358243560,-1070.95,0.00022335,2]
[386531593,1758358243572,-480.0,0.00022338,2]
[386531594,1758358243585,-9539.56,0.00022338,2]
[386531595,1758358243596,-480.0,0.00022338,2]
[386531596,1758358243610,-151.839764,0.00022339,7]
[386531597,1758358243621,-151.0,0.00022339,7]
[386531598,1758358243633,-159.53759,0.00022339,7]
[386531599,1758358243645,-151.0,0.00022339,7]
[386531600,1758358243656,-151.0,0.00022339,7]
[386531601,1758358243668,-151.0,0.00022339,7]
[386531602,1758358243680,-233.619661,0.00022339,7]
[386531603,1758358243691,-233.619661,0.00022339,7]
[386531604,1758358243703,-233.619661,0.00022339,7]
[386531605,1758358243715,-233.619661,0.00022339,7]
[386531606,1758358243726,-676.28,0.00022339,2]
[386531607,1758358243739,-151.0,0.0002234,7]
[386531608,1758358243751,-151.0,0.0002234,7]
[386531609,1758358243762,-151.0,0.0002234,7]
[386531610,1758358243773,-151.0,0.0002234,7]
[386531611,1758358243785,-151.0,0.0002234,7]
[386531612,1758358243796,-166.579602,0.0002234,7]
[386531613,1758358243808,-6459.6,0.00022495,3]
[386531614,1758358243819,-3229.8,0.00022495,3]
[386531615,1758358243831,-1345.74,0.00022495,3]
[386531616,1758358243842,-672.88,0.00022495,3]
[386531617,1758358243853,-336.44,0.00022495,3]
[386531618,1758358243865,-1406.61,0.00022501,2]
[386531619,1758358243877,-480.0,0.00022501,2]
[386531620,1758358243888,-1032.51,0.00022501,2]
[386531621,1758358243900,-1020.76,0.00022501,2]
[386531622,1758358243911,-480.0,0.00022501,2]
[386531623,1758358243923,-480.0,0.00022501,2]
[386531624,1758358243934,-480.0,0.00022501,2]
[386531625,1758358243943,-480.0,0.00022501,2]
[386531626,1758358243952,-480.0,0.00022501,2]
[386531627,1758358244078,-1853.19,0.00022501,2]
[386531628,1758358244091,-480.0,0.00022501,2]
[386531629,1758358244100,-480.0,0.00022501,2]
[386531630,1758358244111,-916.15,0.00022501,2]
[386531631,1758358244121,-480.0,0.00022501,2]
[386531632,1758358244131,-480.0,0.00022501,2]
[386531633,1758358244141,-480.0,0.00022501,2]
[386531634,1758358244151,-500.0,0.00022505,5]
[386531635,1758358244161,-500.0,0.00022505,5]
[386531636,1758358244171,-502.04431612,0.00022521,2]
[386531637,1758358244181,-264.9789578,0.00022603,2]
[386531638,1758358244190,-480.0,0.00022603,2]
[386531639,1758358244199,-480.0,0.00022603,2]
[386531640,1758358244208,-480.0,0.00022603,2]
[386531641,1758358244218,-480.0,0.00022603,2]
[386531642,1758358244227,-480.0,0.00022603,2]
[386531643,1758358244238,-480.0,0.00022603,2]
[386531644,1758358244248,-507.64710878,0.00022603,2]
[386531645,1758358244259,-480.0,0.00022603,2]
[386531646,1758358244268,-480.0,0.00022603,2]
[386531647,1758358244278,-480.0,0.00022603,2]
[386531648,1758358244287,-480.0,0.00022603,2]
[386531649,1758358244297,-480.0,0.00022603,2]
[386531650,1758358244307,-480.0,0.00022603,2]
[386531651,1758358244316,-480.0,0.00022603,2]
[386531652,1758358244325,-480.0,0.00022603,2]
[386531653,1758358244335,-480.0,0.00022603,2]
[386531654,1758358244344,-740.46,0.00022604,2]
[386531655,1758358244354,-480.0,0.00022604,2]
[386531656,1758358244363,-480.0,0.00022604,2]
[386531657,1758358244373,-480.0,0.00022604,2]
[386531658,1758358244382,-480.0,0.00022604,2]
[386531659,1758358244391,-480.0,0.00022604,2]
[386531660,1758358244401,-480.0,0.00022604,2]
[386531661,1758358244410,-785.14,0.00022604,2]
[386531662,1758358244419,-480.0,0.00022604,2]
[386531663,1758358244429,-1873.84,0.00022604,2]
[386531664,1758358244438,-1001.2,0.00022604,2]
[386531665,1758358244448,-480.0,0.00022605,2]
[386531666,1758358244458,-480.0,0.00022605,2]
[386531667,1758358244468,-480.0,0.00022605,2]
[386531668,1758358244478,-720.47,0.00022605,2]
[386531669,1758358244488,-480.0,0.00022605,2]
[386531670,1758358244498,-480.0,0.00022605,2]
[386531671,1758358244507,-480.0,0.00022605,2]
[386531672,1758358244517,-480.0,0.00022607,2]
[386531673,1758358244527,-1402.79,0.00022607,2]
[386531674,1758358244537,-681.01,0.00022607,2]
[386531675,1758358244546,-480.0,0.00022607,2]
[386531676,1758358244558,-480.0,0.00022608,2]
[386531677,1758358244567,-3805.84,0.00022609,2]
[386531678,1758358244577,-648.37,0.00022609,2]
[386531679,1758358244587,-1070.95,0.00022609,2]
[386531680,1758358244597,-282.03758622,0.00022612,2]
[386531681,1758358244607,-9539.56,0.00022612,2]
[386531682,1758358244618,-480.0,0.00022612,2]
[386531683,1758358244627,-676.28,0.00022613,2]
[386531684,1758358244636,-151.0,0.00022614,7]
[386531685,1758358244646,-151.0,0.00022614,7]
[386531686,1758358244656,-151.0,0.00022614,7]
[386531687,1758358244666,-151.0,0.00022614,7]
[386531688,1758358244676,-151.0,0.00022614,7]
[386531689,1758358244686,-151.0,0.00022614,7]
[386531690,1758358244695,-260.19703,0.00022614,7]
[386531691,1758358244705,-151.0,0.00022614,7]
[386531692,1758358244715,-151.0,0.00022614,7]
[386531693,1758358244724,-260.0,0.00022648,2]
[386531694,1758358244734,-179.74835231,0.00022717,2]
[386531695,1758358244743,-500.0,0.00022722,2]
[386531696,1758358244753,-1406.61,0.00022775,2]
[386531697,1758358244763,-480.0,0.00022775,2]
[386531698,1758358244773,-1032.51,0.00022775,2]
[386531699,1758358244783,-1020.76,0.00022775,2]
[386531700,1758358244792,-480.0,0.00022775,2]
[386531701,1758358244802,-480.0,0.00022775,2]
[386531702,1758358244811,-480.0,0.00022775,2]
[386531703,1758358244820,-480.0,0.00022775,2]
[386531704,1758358244830,-480.0,0.00022775,2]
[386531705,1758358244839,-1853.19,0.00022775,2]
[386531706,1758358244849,-237.04362602,0.00022775,2]
[386531707,1758358244858,-480.0,0.00022775,2]
[386531708,1758358244869,-916.15,0.00022775,2]
[386531709,1758358244879,-480.0,0.00022775,2]
[386531710,1758358244888,-480.0,0.00022775,2]
[386531711,1758358244898,-480.0,0.00022775,2]
[386531712,1758358244907,-440.0,0.00022779,5]
[386531713,1758358244917,-232.89377225,0.00022785,2]
[386531714,1758358244927,-810.2410182,0.00022795,2]
[386531715,1758358244936,-480.0,0.00022877,2]
[386531716,1758358244945,-480.0,0.00022877,2]
[386531717,1758358244955,-480.0,0.00022877,2]
[386531718,1758358244965,-480.0,0.00022877,2]
[386531719,1758358244975,-480.0,0.00022877,2]
[386531720,1758358244985,-592.80162402,0.00022877,2]
[386531721,1758358244996,-480.0,0.00022877,2]
[386531722,1758358245005,-480.0,0.00022877,2]
[386531723,1758358245014,-480.0,0.00022877,2]
[386531724,1758358245024,-480.0,0.00022877,2]
[386531725,1758358245033,-480.0,0.00022877,2]
[386531726,1758358245042,-480.0,0.00022877,2]
[386531727,1758358245052,-480.0,0.00022877,2]
[386531728,1758358245061,-480.0,0.00022877,2]
[386531729,1758358245070,-363.41062224,0.00022877,2]
[386531730,1758358245080,-740.46,0.00022878,2]
[386531731,1758358245089,-480.0,0.00022878,2]
[386531732,1758358245099,-480.0,0.00022878,2]
[386531733,1758358245108,-480.0,0.00022878,2]
[386531734,1758358245126,-480.0,0.00022878,2]
[386531735,1758358245135,-480.0,0.00022878,2]
[386531736,1758358245144,-480.0,0.00022878,2]
[386531737,1758358245154,-785.14,0.00022878,2]
[386531738,1758358245164,-480.0,0.00022878,2]
[386531739,1758358245173,-1873.84,0.00022878,2]
[386531740,1758358245182,-1001.2,0.00022878,2]
[386531741,1758358245192,-480.0,0.00022879,2]
[386531742,1758358245201,-480.0,0.00022879,2]
[386531743,1758358245210,-720.47,0.00022879,2]
[386531744,1758358245219,-480.0,0.00022879,2]
[386531745,1758358245228,-403.87931885,0.00022879,2]
[386531746,1758358245239,-480.0,0.00022879,2]
[386531747,1758358245250,-480.0,0.00022881,2]
[386531748,1758358245259,-1402.79,0.00022881,2]
[386531749,1758358245269,-681.01,0.00022881,2]
[386531750,1758358245279,-480.0,0.00022881,2]
[386531751,1758358245288,-480.0,0.00022882,2]
[386531752,1758358245297,-3805.84,0.00022883,2]
[386531753,1758358245307,-648.37,0.00022883,2]
[386531754,1758358245316,-1070.95,0.00022883,2]
[386531755,1758358245325,-9539.56,0.00022886,2]
[386531756,1758358245334,-480.0,0.00022886,2]
[386531757,1758358245344,-676.28,0.00022887,2]
[386531758,1758358245353,-500.0,0.0002292,2]
[386531759,1758358245363,-500.0,0.0002292,2]
[386531760,1758358245373,-200.27710604,0.00022938,2]
[386531761,1758358245382,-500.0,0.00022938,2]
[386531762,1758358245392,-151.0,0.00022938,2]
[386531763,1758358245401,-500.0,0.00022938,2]
[386531764,1758358245411,-152.97986127,0.00022938,2]
[386531765,1758358245420,-250.0,0.00022938,2]
[386531766,1758358245429,-500.0,0.00022938,2]
[386531767,1758358245439,-250.0,0.00022938,2]
[386531768,1758358245449,-500.0,0.00022938,2]
[386531769,1758358245459,-500.0,0.00022938,2]
[386531770,1758358245468,-250.0,0.00022938,2]
[386531771,1758358245478,-151.0,0.00022938,2]
[386531772,1758358245487,-500.0,0.00022938,2]
[386531773,1758358245497,-151.0,0.00022938,2]
[386531774,1758358245506,-250.0,0.00022938,2]
[386531775,1758358245515,-181.08010149,0.00022938,2]
[386531776,1758358245525,-250.0,0.00022938,2]
[386531777,1758358245534,-500.0,0.00022938,2]
[386531779,1758358245544,-151.0,0.00022938,2]
[386531782,1758358245554,-500.0,0.00022938,2]
[386531784,1758358245563,-250.0,0.00022938,2]
[386531785,1758358245572,-151.0,0.00022938,2]
[386531786,1758358245582,-250.0,0.00022938,2]
[386531787,1758358245591,-500.0,0.00022938,2]
[386531788,1758358245601,-151.0,0.00022938,2]
[386531789,1758358245611,-250.0,0.00022938,2]
[386531790,1758358245621,-500.0,0.00022938,2]
[386531791,1758358245631,-153.11569432,0.00022938,2]
[386531792,1758358245640,-250.0,0.00022938,2]
[386531793,1758358245649,-500.0,0.00022938,2]
[386531794,1758358245659,-500.0,0.00022938,2]
[386531795,1758358245668,-250.0,0.00022938,2]
[386531796,1758358245678,-500.0,0.00022938,2]
[386531797,1758358245687,-250.0,0.00022938,2]
[386531798,1758358245697,-500.0,0.00022938,2]
[386531799,1758358245706,-250.0,0.00022938,2]
[386531800,1758358245716,-293.957812,0.00022938,2]
[386531801,1758358245725,-500.0,0.00022938,2]
[386531802,1758358245735,-25904.38182948,0.00022967,2]
[386531803,1758358245745,-500.0,0.00022967,2]
[386531805,1758358245754,-500.0,0.00022967,2]
[386531807,1758358245764,-500.0,0.00022967,2]
[386531809,1758358245773,-500.0,0.00022967,2]
[386531811,1758358245782,-500.0,0.00022967,2]
[386531812,1758358245791,-501.74788486,0.00022967,2]
[386531813,1758358245801,-500.0,0.00022967,2]
[386531814,1758358245810,-265.73796648,0.00022967,2]
[386531815,1758358245820,-500.0,0.00022967,2]
[386531816,1758358245829,-290.77588044,0.00022967,2]
[386531817,1758358245839,-500.0,0.00022967,2]
[386531818,1758358245849,-500.0,0.00022967,2]
[386531820,1758358245859,-257.413355,0.00022967,7]
[386531821,1758358245868,-257.413355,0.00022967,7]
[386531822,1758358245877,-257.413355,0.00022967,7]
[386531823,1758358245887,-579.404273,0.00022967,7]
[386531824,1758358245897,-257.413355,0.00022967,7]
[386531825,1758358245906,-579.404273,0.00022967,7]
[386531827,1758358245916,-151.09423873,0.00022967,2]
[386531828,1758358245925,-579.404273,0.00022967,7]
[386531829,1758358245935,-579.404273,0.00022967,7]
[386531830,1758358245944,-151.0,0.00022967,7]
[386531831,1758358245954,-151.0,0.00022967,7]
[386531832,1758358245963,-151.0,0.00022967,7]
[386531833,1758358245973,-151.0,0.00022967,7]
[386531834,1758358245983,-154.585927,0.00022967,7]
[386531835,1758358245992,-151.0,0.00022967,7]
[386531836,1758358246002,-151.0,0.00022967,7]
[386531837,1758358246011,-151.0,0.00022967,7]
[386531838,1758358246020,-151.0,0.00022967,7]
[386531839,1758358246030,-151.0,0.00022967,7]
[386531840,1758358246039,-151.0,0.00022967,7]
[386531841,1758358246049,-151.0,0.00022967,7]
[386531842,1758358246059,-151.0,0.00022967,7]
[386531843,1758358246068,-151.0,0.00022967,7]
[386531844,1758358246078,-205.937041,0.00022967,7]
[386531845,1758358246087,-151.0,0.00022967,7]
[386531846,1758358246097,-205.937041,0.00022967,7]
[386531847,1758358246107,-205.937041,0.00022967,7]
[386531848,1758358246117,-420.0,0.00022975,2]
[386531849,1758358246126,-848.27550084,0.00023,2]
[386531850,1758358246136,-160.0,0.00023,2]
[386531851,1758358246145,-160.0,0.00023,2]
[386531852,1758358246155,-160.0,0.00023,2]
[386531853,1758358246165,-233.47853244,0.00023,2]
[386531854,1758358246175,-218.03426629,0.00023,2]
[386531855,1758358246184,-160.0,0.00023,2]
[386531856,1758358246194,-218.03426629,0.00023,3]
[386531857,1758358246203,-152.000428,0.00023033,7]
[386531858,1758358246212,-158.843802,0.00023033,7]
[386531859,1758358246222,-151.0,0.00023033,7]
[386531860,1758358246231,-151.0,0.00023033,7]
[386531861,1758358246241,-216.377465,0.00023033,7]
[386531862,1758358246253,-151.0,0.00023033,7]
[386531863,1758358246264,-216.377465,0.00023033,7]
[386531864,1758358246274,-216.377465,0.00023033,7]
[386531865,1758358246283,-216.377465,0.00023033,7]
[386531866,1758358246292,-151.0,0.00023033,7]
[386531867,1758358246301,-500.0,0.00023033,2]
[386531868,1758358246311,-505.16076925,0.00023033,2]
[386531869,1758358246320,-1406.61,0.00023049,2]
[386531870,1758358246330,-480.0,0.00023049,2]
[386531871,1758358246339,-1032.51,0.00023049,2]
[386531872,1758358246348,-1020.76,0.00023049,2]
[386531873,1758358246432,-480.0,0.00023049,2]
[386531874,1758358246454,-480.0,0.00023049,2]
[386531875,1758358246463,-480.0,0.00023049,2]
[386531876,1758358246473,-480.0,0.00023049,2]
[386531877,1758358246483,-480.0,0.00023049,2]
[386531878,1758358246493,-1853.19,0.00023049,2]
[386531879,1758358246503,-480.0,0.00023049,2]